bitfinex/quotes_ETHUSD_20220305
["timestamp","ask_amount","ask_price","bid_price","bid_amount"]
[1646442479702,0.3832,2608.3,2607.8,0.7747804]
[1646442479901,0.3832,2608.3,2607.8,0.00131741]
[1646442480147,1.01723649,2608.1,2607.8,0.00131741]
[1646442480442,3.5,2608.7,2607.8,0.00131741]
[1646442480443,0.3832,2608.4,2607.8,0.77358869]
[1646442480642,0.3832,2608.4,2607.5,1.21442856]
[1646442480848,2.0,2608.8,2607.6,0.77358257]
[1646442481249,0.1917,2609.0,2607.6,3.65083167]
[1646442481446,1.12330908,2608.9,2608.3,1.20236782]
[1646442481850,2.0,2609.1,2608.4,0.77341316]
[1646442482048,0.9589253,2609.4,2608.4,0.77341316]
[1646442482049,2.9589253,2609.4,2608.4,0.77341316]
[1646442482448,1.16081545,2609.3,2608.4,0.77341316]
[1646442482649,2.0,2609.4,2608.4,0.77341316]
[1646442482849,2.0,2609.4,2608.8,1.10837242]
[1646442483051,2.60671473,2610.0,2608.8,1.10837242]
[1646442483052,1.1502541,2609.9,2608.8,1.10837242]
[1646442483354,0.77747427,2609.8,2608.8,1.10837242]
[1646442483811,0.77747427,2609.8,2608.9,2.11521259]
[1646442483999,7.34727971,2610.4,2608.9,2.11521259]
[1646442484000,1.03873089,2610.0,2609.4,0.96659662]
[1646442484201,0.96915274,2609.9,2609.4,0.96659662]
[1646442484400,0.1915,2609.9,2609.4,0.96659662]
[1646442484801,0.1915,2610.2,2609.4,0.96659662]
[1646442485000,0.77764091,2610.1,2609.4,0.96659662]
[1646442485400,0.77764091,2610.1,2609.5,0.95848]
[1646442485600,0.77764091,2610.1,2609.4,0.96659662]
[1646442486203,0.13819997,2610.4,2609.5,0.77313068]
[1646442486400,0.77762452,2610.3,2609.5,1.73159068]
[1646442486602,0.77762452,2610.3,2609.6,0.77311595]
[1646442486999,0.77762452,2610.3,2610.0,1.10122101]
[1646442487402,0.4077,2610.5,2610.0,1.10122101]
[1646442487646,0.77762558,2610.4,2609.5,0.95838]
[1646442487845,0.77762558,2610.4,2609.6,0.77306512]
[1646442488248,0.77762558,2610.4,2609.6,2.68977512]
[1646442488445,1.1056933,2610.6,2609.5,0.95849]
[1646442488650,1.14387312,2610.2,2609.6,0.77278286]
[1646442488849,1.14387312,2610.2,2609.5,1.88861166]
[1646442489049,1.0,2610.8,2609.5,1.88861166]
[1646442489251,0.77770473,2610.7,2609.6,1.15597569]
[1646442489449,0.77770473,2610.6,2610.0,0.95819]
[1646442489649,0.77770473,2610.5,2610.0,0.95819]
[1646442489850,0.87760473,2611.1,2610.0,0.95819]
[1646442490050,0.77756639,2611.0,2610.0,0.95819]
[1646442490351,0.88185952,2610.8,2610.0,0.95819]
[1646442490651,0.77756639,2610.7,2610.0,0.95827]
[1646442490849,0.77756639,2610.6,2610.0,0.95827]
[1646442491050,1.3832,2611.1,2610.0,0.95827]
[1646442491051,0.3832,2611.1,2610.0,0.95827]
[1646442491303,0.77760601,2611.0,2610.0,0.95827]
[1646442491489,0.77760601,2610.9,2610.0,0.95827]
[1646442491692,0.77760601,2610.8,2610.3,1.03951793]
[1646442492693,0.77760601,2610.7,2610.3,1.03951793]
[1646442492894,0.68890473,2611.3,2610.4,0.95814]
[1646442493092,1.46632613,2611.3,2610.4,0.95814]
[1646442493493,1.46632613,2611.3,2610.3,1.03951793]
[1646442493695,1.14334357,2611.0,2610.3,1.03951793]
[1646442493902,0.7774214,2610.9,2610.3,1.03951793]
[1646442494098,0.7774214,2610.9,2610.1,1.91627]
[1646442495540,0.88403168,2610.6,2610.1,1.91627]
[1646442496146,0.77943449,2610.5,2610.1,1.91627]
[1646442496346,0.68890473,2611.1,2610.1,1.91627]
[1646442496549,1.4683417,2611.1,2610.1,1.91627]
[1646442496944,0.9582509,2611.2,2610.1,1.91627]
[1646442496945,0.77943697,2611.0,2610.1,1.91627]
[1646442497147,0.77943697,2610.9,2610.5,1.08905209]
[1646442497346,0.77943697,2610.8,2610.1,1.91627]
[1646442497548,0.77943697,2610.7,2610.1,1.91627]
[1646442497746,0.77943697,2610.6,2610.1,1.91627]
[1646442497947,1.21358046,2611.1,2610.1,2.87441]
[1646442498146,0.77929819,2611.0,2610.1,2.87441]
[1646442498547,0.77929819,2611.0,2610.2,1.13863462]
[1646442498993,0.77929819,2611.0,2610.3,0.95819]
[1646442499793,0.77929819,2611.0,2610.6,1.19246193]
[1646442499995,1.68890473,2611.2,2610.5,0.95812]
[1646442499996,0.77929819,2610.9,2610.5,0.95812]
[1646442500197,0.77929819,2610.8,2610.5,0.95812]
[1646442500395,0.77929819,2610.7,2610.5,0.95812]
[1646442500595,0.77929819,2610.6,2610.5,0.95812]
[1646442501397,0.68890473,2611.3,2610.5,0.95812]
[1646442501801,1.44600266,2611.3,2610.5,0.95812]
[1646442501998,0.75709793,2611.3,2610.5,0.95812]
[1646442502398,0.75709793,2611.2,2610.5,0.95812]
[1646442502639,0.75709793,2611.1,2610.5,0.95812]
[1646442502841,0.75709793,2611.0,2610.5,0.95812]
[1646442503139,0.75709793,2610.9,2610.5,0.95812]
[1646442503339,0.75709793,2610.8,2610.5,0.95812]
[1646442503540,0.75709793,2610.7,2610.5,0.95812]
[1646442503740,0.68890473,2611.4,2610.5,1.34132]
[1646442503947,0.7569075,2611.3,2610.5,13.00132]
[1646442504144,0.7569075,2611.2,2610.5,13.95931]
[1646442504351,0.7569075,2611.1,2610.7,0.95796]
[1646442504548,0.68986473,2611.9,2610.8,13.0010677]
[1646442504745,1.91516231,2611.9,2610.9,1.91547]
[1646442504947,0.01047226,2611.7,2610.9,1.91547]
[1646442505148,0.75661753,2611.6,2610.9,1.91547]
[1646442505948,0.75661753,2611.5,2610.8,1.0]
[1646442506153,0.01047327,2611.8,2610.5,2.8737253]
[1646442506154,0.75661753,2611.4,2610.5,2.8737253]
[1646442506399,0.01047327,2611.8,2610.5,1.0]
[1646442506597,0.3832,2611.5,2610.2,1.249]
[1646442506798,0.3832,2611.3,2610.3,0.79504988]
[1646442507000,1.03016723,2610.3,2610.2,1.249]
[1646442507197,1.03016723,2610.3,2609.6,6.5283]
[1646442507401,1.03016723,2610.3,2609.7,0.79522036]
[1646442507598,1.03016723,2610.3,2608.9,2.76228163]
[1646442507599,1.03016723,2610.3,2609.1,3.0786]
[1646442507898,1.03016723,2610.3,2609.2,0.79527216]
[1646442508097,1.03016723,2610.3,2609.3,0.79527216]
[1646442508296,0.99887422,2609.9,2609.4,0.79527216]
[1646442508506,0.13819997,2610.5,2609.5,0.79527216]
[1646442508696,0.13819997,2610.5,2609.2,1.00320043]
[1646442508697,0.13819997,2610.5,2609.6,0.79527216]
[1646442508903,0.13819997,2610.5,2609.7,0.79527216]
[1646442509101,0.13819997,2610.5,2609.8,0.79527216]
[1646442509409,1.0,2610.8,2609.9,2.705317]
[1646442509410,1.03083274,2610.8,2609.9,2.705317]
[1646442509606,1.03083274,2610.8,2610.1,0.9582]
[1646442509803,1.03083274,2610.8,2610.2,0.7888766]
[1646442510047,2.3832,2611.0,2610.2,0.7888766]
[1646442510048,2.0,2611.0,2610.2,0.7888766]
[1646442510245,2.9352,2611.4,2609.9,12.0432]
[1646442510447,1.14606682,2611.3,2610.2,1.91616]
[1646442510646,0.76286682,2611.2,2610.3,1.74721824]
[1646442510846,0.76286682,2611.1,2610.4,0.78902824]
[1646442511046,0.1895,2611.5,2610.6,1.0124405]
[1646442511047,1.21052771,2611.3,2610.6,1.0124405]
[1646442511248,0.76288697,2611.2,2610.6,1.0124405]
[1646442511650,1.14608697,2611.2,2610.4,1.91606]
[1646442511847,0.76288697,2611.1,2610.4,1.91606]
[1646442512251,0.76288697,2611.0,2610.4,1.91606]
[1646442512451,9.34890473,2611.6,2610.5,0.78920605]
[1646442512452,0.19,2611.6,2610.5,0.78920605]
[1646442512658,3.67647244,2611.7,2610.8,0.95782]
[1646442512659,0.76320608,2611.5,2610.8,0.95782]
[1646442512850,0.76320608,2611.6,2610.8,0.95782]
[1646442513451,0.76320608,2611.6,2611.2,0.93887089]
[1646442513650,0.76320608,2611.6,2611.2,3.81218089]
[1646442513907,0.76320608,2611.5,2611.2,3.81218089]
[1646442514108,0.76320608,2611.4,2611.2,3.81218089]
[1646442514306,0.01040991,2611.9,2611.2,3.81218089]
[1646442514506,0.76287237,2611.8,2611.3,0.95777]
[1646442514910,0.76287237,2611.8,2611.2,1.91554]
[1646442515507,0.76287237,2611.7,2610.9,1.91574]
[1646442515709,0.00096,2611.9,2610.9,1.91574]
[1646442515710,0.76383237,2611.9,2610.9,1.91574]
[1646442515907,1.91507462,2611.8,2611.1,2.05220498]
[1646442516111,0.76287237,2611.7,2611.1,2.05220498]
[1646442517116,0.01018289,2611.9,2611.2,12.0432]
[1646442517316,0.76260906,2611.8,2611.4,13.0008]
[1646442517548,0.76260906,2611.8,2611.5,0.9575895]
[1646442517946,0.00096,2612.2,2611.5,0.9575895]
[1646442518146,0.00929856,2612.1,2611.3,3.830309]
[1646442518347,0.76202065,2612.0,2611.3,1.0]
[1646442518544,0.76202065,2612.0,2611.0,0.1913]
[1646442518745,0.3832,2611.8,2611.0,0.1913]
[1646442518949,0.3832,2611.8,2610.8,0.1913]
[1646442519150,0.96083364,2611.2,2610.5,3.9829]
[1646442519347,0.96083364,2611.2,2610.6,0.78792273]
[1646442519547,0.96083364,2611.2,2610.6,0.97942273]
[1646442519751,0.96083364,2611.2,2610.6,0.1915]
[1646442519949,0.96083364,2611.2,2610.5,1.0]
[1646442520154,1.34403364,2611.2,2610.5,1.0]
[1646442520349,1.34403364,2611.2,2610.0,2.9955]
[1646442520549,1.34403364,2611.2,2610.1,0.78801788]
[1646442520748,1.34403364,2611.2,2610.2,2.86698292]
[1646442520949,1.34403364,2611.2,2610.3,0.78801788]
[1646442521316,2.45169997,2611.5,2610.6,1.23221517]
[1646442521500,0.76174025,2611.4,2610.6,1.23221517]
[1646442521702,0.13819997,2611.5,2610.6,1.23221517]
[1646442522102,0.76166204,2611.4,2610.9,0.95787]
[1646442522301,0.76166204,2611.4,2611.1,1.02963672]
[1646442522502,0.00928196,2611.7,2611.1,1.02963672]
[1646442522705,0.00928196,2611.7,2610.8,1.91573]
[1646442522706,0.76232805,2611.6,2610.8,1.91573]
[1646442523100,0.76232805,2611.6,2610.8,2.29893]
[1646442523304,0.76232805,2611.6,2611.0,0.95789]
[1646442523704,0.76232805,2611.6,2611.0,1.34109]
[1646442523907,0.00096,2612.1,2611.0,1.34109]
[1646442524109,0.00914725,2611.8,2611.2,2.29874]
[1646442524408,0.76316812,2611.7,2611.4,0.95649467]
[1646442524606,0.76316812,2611.7,2611.4,0.01368602]
[1646442525647,0.76316812,2611.6,2611.2,3.00971621]
[1646442525845,1.03229745,2611.9,2611.2,1.91554]
[1646442526053,0.74554267,2611.8,2611.2,1.91554]
[1646442526446,0.74554267,2611.8,2611.0,2.9157]
[1646442526650,0.74554267,2611.8,2610.8,0.1913]
[1646442526848,1.06674262,2611.1,2610.7,1.91588]
[1646442527047,1.06674262,2611.1,2610.5,1.0]
[1646442527247,1.06674262,2611.1,2610.6,0.80669439]
[1646442527449,1.06674262,2611.1,2610.4,1.14341754]
[1646442527652,1.06674262,2611.1,2610.5,0.80780035]
[1646442527653,0.74628112,2611.0,2610.5,0.80780035]
[1646442527958,0.74628112,2611.0,2610.2,0.1915]
[1646442528150,0.74628112,2611.0,2610.3,0.80798197]
[1646442528350,1.12948112,2611.0,2610.3,0.80798197]
[1646442528552,1.06674262,2611.1,2610.3,0.80798197]
[1646442528553,1.12948112,2610.9,2610.3,0.80798197]
[1646442528807,1.12948112,2610.9,2610.2,0.1915]
[1646442528808,0.3832,2610.7,2610.2,0.1915]
[1646442528998,0.3832,2610.7,2609.6,1.0]
[1646442528999,4.62948112,2610.6,2609.6,1.0]
[1646442529201,4.62948112,2610.6,2609.7,0.80867421]
[1646442529202,0.34126459,2610.4,2609.7,0.80867421]
[1646442529396,3.5,2610.6,2609.7,0.80867421]
[1646442529397,0.74628112,2610.3,2609.7,0.80867421]
[1646442529598,0.74628112,2610.3,2609.4,3.0247]
[1646442529599,0.74628112,2610.2,2609.8,0.80867421]
[1646442529799,0.74628112,2610.1,2609.4,1.9169]
[1646442529998,3.0,2610.7,2609.5,4.90229564]
[1646442530197,3.0,2610.7,2609.6,0.8088213]
[1646442530198,0.74685558,2610.6,2609.6,0.8088213]
[1646442530603,1.13005558,2610.6,2609.7,0.9583]
[1646442530798,0.74685558,2610.5,2609.8,2.7254313]
[1646442530998,0.74685558,2610.5,2609.9,0.8088213]
[1646442531198,0.74685558,2610.5,2609.9,1.94732445]
[1646442531406,0.74685558,2610.5,2610.0,0.8088213]
[1646442532405,0.74685558,2610.5,2610.0,1.7671313]
[1646442532649,0.74685558,2610.5,2610.1,0.8088213]
[1646442532949,0.74685558,2610.5,2610.2,0.8088213]
[1646442533151,0.74685558,2610.5,2610.0,1.9164]
[1646442533350,2.13819997,2611.0,2610.2,0.95824]
[1646442533556,0.74749545,2610.9,2610.3,0.80918572]
[1646442533950,0.74749545,2610.9,2610.4,0.80918572]
[1646442534152,0.74749545,2610.9,2610.5,0.80918572]
[1646442534353,0.7349,2611.3,2610.7,1.04562124]
[1646442534551,0.74777644,2611.2,2610.7,1.04562124]
[1646442534754,0.74777644,2611.2,2610.8,0.80911162]
[1646442535155,0.7349,2611.3,2610.8,13.75211162]
[1646442535357,0.7349,2611.3,2611.0,0.3832]
[1646442535556,0.7349,2611.3,2610.9,0.80911162]
[1646442535557,0.7349,2611.3,2611.1,3.10018041]
[1646442535757,0.7349,2611.3,2611.2,0.80911162]
[1646442535953,0.7349,2611.3,2611.1,2.29106879]
[1646442536720,0.74786148,2611.2,2611.0,1.91555]
[1646442536924,0.74786148,2611.2,2610.5,2.87347]
[1646442537122,0.74786148,2611.2,2610.6,0.80911389]
[1646442537522,0.74786148,2611.2,2610.2,0.3832]
[1646442537721,0.74786148,2611.2,2610.8,0.90456454]
[1646442538621,0.74786148,2611.2,2610.8,1.86259454]
[1646442538922,0.74786148,2611.2,2610.9,0.80924736]
[1646442539721,0.74786148,2611.2,2611.0,0.95795]
[1646442539921,0.74786148,2611.2,2610.9,0.80924736]
[1646442540150,0.00096,2611.5,2610.8,0.80924736]
[1646442540151,0.74882148,2611.5,2610.8,0.80924736]
[1646442540350,1.40921982,2611.6,2610.5,1.91603]
[1646442540351,0.74786148,2611.4,2610.5,1.91603]
[1646442540550,0.74786148,2611.3,2610.6,0.80946129]
[1646442540749,0.74786148,2611.2,2610.6,0.80946129]
[1646442540955,0.74786148,2611.1,2610.6,0.80946129]
[1646442541151,0.74786148,2611.0,2610.6,0.80946129]
[1646442541953,0.74786148,2610.9,2610.7,0.95806]
[1646442542152,0.00096,2611.4,2610.8,0.80946129]
[1646442542352,1.43764671,2611.6,2610.8,0.80946129]
[1646442542551,0.74778198,2611.5,2610.9,0.80946129]
[1646442542752,0.74778198,2611.4,2610.5,1.91603]
[1646442543054,0.74778198,2611.3,2611.0,1.04390126]
[1646442543255,0.74778198,2611.2,2611.0,1.04390126]
[1646442543460,0.00096,2611.6,2611.1,0.80929283]
[1646442543652,0.74818137,2611.6,2611.1,0.80929283]
[1646442544303,0.74818137,2611.6,2611.1,1.76708283]
[1646442544503,0.74818137,2611.6,2611.2,0.80929283]
[1646442544707,0.74818137,2611.6,2611.0,2.95947126]
[1646442544708,0.00096,2611.8,2611.3,4.5]
[1646442544905,0.00956026,2611.9,2611.3,5.8408894]
[1646442545102,0.00956026,2611.9,2611.3,17.5008894]
[1646442545303,0.00956026,2611.9,2611.3,18.5008894]
[1646442545502,0.00096,2612.3,2611.5,0.95766]
[1646442545704,0.91298114,2611.8,2611.4,1.91532]
[1646442545905,0.91298114,2611.8,2611.1,1.91538]
[1646442546107,0.91394114,2611.8,2611.1,1.91538]
[1646442547102,0.00096,2611.8,2611.1,1.91538]
[1646442547306,0.00754395,2612.0,2611.3,1.91558]
[1646442547549,0.00754395,2612.0,2611.3,0.95773]
[1646442548154,0.00096,2612.1,2611.3,0.95773]
[1646442548357,1.08551289,2612.0,2611.3,0.95773]
[1646442549055,1.08551289,2612.0,2611.5,0.95772]
[1646442549255,0.68890473,2612.1,2611.4,1.19741637]
[1646442549458,0.38416,2612.2,2611.4,1.19741637]
[1646442549662,0.39276846,2612.2,2611.4,1.19741637]
[1646442550463,0.88453295,2612.1,2611.5,0.95772]
[1646442550865,0.88453295,2612.1,2611.4,1.19741637]
[1646442553106,0.38416,2612.3,2611.4,4.69741637]
[1646442553107,0.39342736,2612.3,2611.4,4.69741637]
[1646442553307,0.01022736,2612.3,2611.5,0.9576584]
[1646442553506,0.00926736,2612.3,2611.5,0.9576584]
[1646442553911,0.38416,2612.6,2611.5,0.9576584]
[1646442554107,0.93277818,2612.2,2611.5,0.9576584]
[1646442554305,0.93373818,2612.2,2611.5,0.9576584]
[1646442554507,0.93373818,2612.2,2611.7,0.95763]
[1646442554710,0.92277818,2612.2,2611.7,0.95763]
[1646442555348,0.92277818,2612.2,2611.6,1.91525]
[1646442555550,0.92277818,2612.2,2611.5,0.95779]
[1646442555746,0.92373818,2612.2,2611.5,0.95779]
[1646442555947,1.30693818,2612.2,2611.3,1.91551]
[1646442556151,0.3832,2612.0,2610.9,1.95789]
[1646442556351,0.00096,2611.9,2610.9,1.95789]
[1646442556555,0.00096,2611.9,2611.1,1.91567]
[1646442556752,1.04115608,2611.7,2611.1,1.91567]
[1646442557351,1.04115608,2611.7,2611.2,0.9577586]
[1646442557851,1.04115608,2611.7,2611.3,0.95778]
[1646442558454,0.01015833,2611.9,2611.4,0.9577058]
[1646442558655,0.01015833,2611.9,2611.4,2.8731458]
[1646442558656,0.00919833,2611.9,2611.4,2.8731458]
[1646442558909,0.00096,2612.2,2611.5,0.95772]
[1646442559110,0.00919858,2612.0,2611.5,0.95772]
[1646442559306,1.00709678,2612.0,2611.5,0.95772]
[1646442560108,0.9978982,2612.0,2611.5,0.95772]
[1646442560306,0.9978982,2612.0,2611.4,1.91544]
[1646442560509,0.9978982,2612.0,2611.3,0.95786]
[1646442560707,1.3820582,2612.0,2611.3,0.95786]
[1646442560908,1.3810982,2612.0,2611.3,0.95786]
[1646442561107,1.3810982,2612.0,2611.1,3.83117]
[1646442561308,1.3820582,2612.0,2611.1,3.83117]
[1646442561507,1.02502275,2611.6,2611.1,3.83117]
[1646442561712,0.00096,2612.0,2611.1,3.83117]
[1646442561909,0.3832,2612.0,2611.4,0.95782]
[1646442563749,0.00096,2612.3,2611.6,0.95772]
[1646442564156,0.00922557,2612.2,2611.6,0.95772]
[1646442564756,0.69719752,2612.1,2611.6,1.91535]
[1646442565055,0.68986473,2612.5,2611.6,1.91535]
[1646442565056,0.69719752,2612.0,2611.6,1.91535]
[1646442565253,0.00922393,2612.4,2611.7,0.85826341]
[1646442565454,0.69718598,2612.3,2611.7,0.85826341]
[1646442566057,0.69718598,2612.3,2611.9,0.95759]
[1646442566308,0.69718598,2612.2,2611.9,0.95759]
[1646442566507,1.09972548,2612.5,2611.9,0.95759]
[1646442566711,0.69699033,2612.4,2611.9,0.95759]
[1646442568308,0.69699033,2612.4,2611.7,1.91518]
[1646442568507,0.69699033,2612.4,2611.5,0.95777]
[1646442568708,0.69795033,2612.4,2611.6,0.85782849]
[1646442569810,0.69795033,2612.4,2611.7,0.95771]
[1646442570948,1.02478307,2612.1,2611.7,0.95771]
[1646442571348,1.02478307,2612.1,2611.1,4.761]
[1646442571547,1.02478307,2612.1,2610.9,1.228]
[1646442571548,0.69621525,2612.0,2611.2,0.85741328]
[1646442571753,0.69621525,2612.0,2611.0,1.2085]
[1646442571754,0.69717525,2612.0,2611.0,1.2085]
[1646442571948,0.69717525,2612.0,2611.1,0.85750797]
[1646442571949,1.08037525,2612.0,2611.1,0.85750797]
[1646442572157,0.3832,2611.8,2610.7,1.0]
[1646442572356,1.20060347,2611.3,2610.8,0.85776265]
[1646442572553,1.20060347,2611.3,2610.9,0.85776265]
[1646442572755,0.00096,2611.8,2610.6,0.87987024]
[1646442572954,0.3832,2611.9,2610.7,0.85775008]
[1646442573153,0.3832,2611.7,2610.7,0.85775008]
[1646442573356,0.69614069,2611.6,2610.7,0.85775008]
[1646442573553,1.07934069,2611.6,2610.7,2.77366008]
[1646442573800,0.69614069,2611.5,2610.8,0.85775008]
[1646442574812,1.22667642,2610.9,2610.8,0.85775008]
[1646442575010,1.07934069,2611.5,2611.0,0.12440367]
[1646442575011,0.3832,2611.5,2611.0,0.12440367]
[1646442575206,3.42438771,2611.7,2611.0,0.12440367]
[1646442575207,0.3832,2611.3,2611.0,0.12440367]
[1646442575406,0.88020473,2611.6,2611.0,0.12440367]
[1646442575407,0.3832,2611.1,2611.0,0.12440367]
[1646442575606,1.00297157,2611.1,2611.0,0.12440367]
[1646442575908,1.98298638,2611.1,2611.0,0.12440367]
[1646442580654,1.00297157,2611.1,2611.0,0.12440367]
[1646442580857,0.71977157,2611.1,2611.0,0.96145344]
[1646442581058,2.74476652,2611.7,2611.0,0.96145344]
[1646442581311,0.72061618,2611.6,2611.1,0.83704977]
[1646442581610,0.00925326,2611.7,2611.1,1.22024977]
[1646442581808,0.00925326,2611.7,2611.2,1.81766353]
[1646442582012,0.00925326,2611.7,2611.3,1.79472977]
[1646442582207,0.00925326,2611.7,2611.4,0.83704977]
[1646442582411,0.00925326,2611.7,2611.5,0.95764]
[1646442582615,0.00925326,2611.7,2611.6,1.96520594]
[1646442582811,0.73014497,2611.7,2611.6,1.96520594]
[1646442583111,0.72089171,2611.7,2611.6,1.96520594]
[1646442583510,0.72089171,2611.8,2611.6,1.96520594]
[1646442583711,0.00925368,2611.9,2611.7,1.79474977]
[1646442583913,0.00925368,2611.9,2611.7,0.9577]
[1646442583914,0.72103818,2611.8,2611.7,0.9577]
[1646442584112,0.72103818,2611.8,2611.7,1.79468597]
[1646442584312,0.00925615,2612.1,2611.7,1.79468597]
[1646442584313,0.72103818,2612.0,2611.7,1.79468597]
[1646442584514,0.72103818,2612.0,2611.7,0.9577]
[1646442584918,0.72103818,2612.0,2611.4,2.9153]
[1646442585148,0.72103818,2612.0,2611.5,0.83709804]
[1646442585347,0.72103818,2612.0,2611.1,0.5745]
[1646442585348,0.72103818,2612.0,2611.1,1.3832]
[1646442585549,0.72199818,2612.0,2611.2,0.83739344]
[1646442586148,1.21328948,2611.7,2611.2,0.83739344]
[1646442586354,0.72103818,2611.6,2611.2,0.83739344]
[1646442587353,0.00900741,2611.9,2611.2,0.83739344]
[1646442587658,0.00900741,2611.9,2611.2,2.75297374]
[1646442587659,0.72117761,2611.8,2611.2,2.75297374]
[1646442587853,0.72117761,2611.8,2611.3,0.83739344]
[1646442588254,0.72117761,2611.8,2611.6,1.13000243]
[1646442588454,0.72117761,2611.8,2611.7,0.83739344]
[1646442588905,0.72117761,2611.9,2611.7,0.83739344]
[1646442589100,0.72117761,2611.9,2611.6,2.08772243]
[1646442589300,0.72117761,2611.9,2611.7,0.83762618]
[1646442589903,0.72117761,2611.9,2611.8,0.95767]
[1646442590103,0.00096,2612.2,2611.9,0.95756]
[1646442590104,0.72117761,2612.2,2611.9,0.95756]
[1646442590311,0.72117761,2612.1,2612.0,0.83762618]
[1646442590705,0.72117761,2612.2,2611.7,0.83762618]
[1646442590904,0.00750162,2612.3,2612.1,1.13185107]
[1646442591105,0.00187531,2612.5,2612.1,1.13185107]
[1646442591106,0.72139311,2612.2,2612.1,1.13185107]
[1646442591306,0.72139311,2612.2,2612.1,1.96929537]
[1646442591604,0.72332335,2612.5,2612.1,1.96929537]
[1646442591805,0.72139311,2612.4,2612.1,1.13185107]
[1646442592004,0.72139311,2612.3,2612.2,0.83741299]
[1646442592206,0.72332335,2612.5,2612.2,0.83741299]
[1646442592407,0.72332307,2612.5,2612.2,0.83741299]
[1646442592652,0.72139311,2612.4,2612.2,0.83741299]
[1646442592854,0.72139311,2612.3,2612.2,0.83741299]
[1646442593251,0.00386005,2612.5,2612.2,0.83741299]
[1646442593450,0.00193009,2612.5,2612.2,0.83741299]
[1646442594654,0.00198919,2612.5,2612.2,0.83741299]
[1646442595461,0.00198919,2612.5,2611.9,0.95763]
[1646442595657,0.77710838,2612.1,2612.0,0.83665181]
[1646442596512,0.77613299,2612.1,2612.0,1.76855941]
[1646442596903,0.00251503,2612.5,2612.2,0.95752]
[1646442597103,0.00251503,2612.5,2612.3,0.83665181]
[1646442597104,0.00502986,2612.5,2612.3,0.83665181]
[1646442597303,0.00251483,2612.5,2612.4,0.83665181]
[1646442597604,0.00251483,2612.5,2612.3,0.7973]
[1646442597902,0.00251483,2612.5,2612.4,2.02126845]
[1646442599103,0.00251483,2612.5,2612.4,2.97862845]
[1646442599304,0.00239812,2612.6,2612.4,3.97862845]
[1646442599505,0.00239812,2612.6,2612.5,0.83665181]
[1646442599705,0.00239812,2612.6,2612.5,1.21985181]
[1646442599908,0.00239812,2612.6,2612.5,12.87985181]
[1646442600349,0.00479624,2612.6,2612.5,13.87985181]
[1646442600550,0.00239812,2612.6,2612.5,13.87985181]
[1646442601350,0.00188027,2612.7,2612.5,14.83700011]
[1646442601550,0.00188027,2612.7,2612.6,13.83702181]
[1646442601753,0.00188027,2612.7,2612.6,14.83702181]
[1646442602351,0.0018881,2612.7,2612.6,3.17702181]
[1646442602552,0.0018881,2612.7,2612.6,4.13426181]
[1646442603362,0.0018881,2612.7,2612.6,1.83665181]
[1646442603558,0.0018881,2612.7,2612.5,1.91434]
[1646442603804,0.00241791,2612.8,2612.5,1.91434]
[1646442604011,0.00241791,2612.8,2612.3,0.1913]
[1646442604410,0.00241791,2612.8,2611.9,1.4086]
[1646442604610,0.00241791,2612.8,2612.0,0.84877556]
[1646442604611,0.90534245,2612.1,2612.0,0.84877556]
[1646442605013,0.90534245,2612.1,2611.8,1.0]
[1646442605609,0.90534245,2612.1,2611.2,1.0]
[1646442605810,1.19994862,2611.5,2611.3,1.04004405]
[1646442606013,1.19994862,2611.5,2611.4,0.84874405]
[1646442606210,0.00096,2612.1,2611.4,0.84874405]
[1646442606408,0.70381748,2612.1,2611.4,0.84874405]
[1646442606810,0.01304595,2612.5,2611.4,0.84874405]
[1646442607110,0.70394249,2612.4,2611.4,0.84874405]
[1646442607309,0.00096,2612.5,2611.7,0.95754]
[1646442607310,1.17475247,2612.2,2611.7,0.95754]
[1646442607561,1.17475247,2612.2,2611.8,0.84874405]
[1646442608150,0.00096,2612.7,2611.8,0.84874405]
[1646442608354,0.01178536,2612.5,2611.9,0.95753]
[1646442608556,0.01178536,2612.5,2612.0,0.84874405]
[1646442608956,0.01178536,2612.5,2612.0,1.04004405]
[1646442609155,0.01178536,2612.5,2612.1,1.88859215]
[1646442609358,0.00096,2613.1,2612.2,0.84850744]
[1646442609556,0.00096,2612.7,2612.4,0.9573]
[1646442609757,0.00236848,2612.5,2612.4,0.9573]
[1646442609957,0.00236848,2612.5,2612.4,1.80572627]
[1646442610558,0.00096,2613.3,2612.9,1.10448201]
[1646442610756,0.00947261,2613.0,2612.6,1.9145188]
[1646442611163,0.00947261,2613.0,2612.7,0.84787507]
[1646442611805,0.00096,2613.3,2612.7,1.80446739]
[1646442612003,0.00237519,2613.0,2612.7,1.91385232]
[1646442613005,0.70322248,2613.3,2612.7,1.91385232]
[1646442613207,0.90363067,2613.2,2612.6,1.91447]
[1646442613405,0.00237519,2613.0,2612.2,1.0]
[1646442613609,0.00237519,2613.0,2611.9,4.1529]
[1646442613811,1.08970205,2613.0,2612.0,0.84744323]
[1646442614012,0.3832,2612.8,2612.0,0.84744323]
[1646442614212,1.15681948,2612.2,2612.0,0.84744323]
[1646442614562,1.15681948,2612.2,2611.7,0.1913]
[1646442614612,1.15681948,2612.2,2611.5,1.0]
[1646442614811,1.15681948,2612.2,2611.6,0.8477984]
[1646442615355,1.07722568,2611.4,2611.2,1.0]
[1646442615555,4.4579725,2612.2,2611.6,0.09786415]
[1646442615556,0.3832,2611.9,2611.6,0.09786415]
[1646442615756,0.3832,2611.7,2611.6,0.09786415]
[1646442616957,1.04961568,2611.8,2611.6,0.09786415]
[1646442617961,8.3832,2611.7,2611.0,0.12440367]
[1646442618161,0.3832,2611.5,2611.0,0.12440367]
[1646442618360,1.68231709,2611.6,2610.5,2.51342375]
[1646442618361,0.3832,2611.3,2610.5,2.51342375]
[1646442618558,1.20739817,2610.7,2610.5,2.51342375]
[1646442618801,0.3832,2611.1,2610.5,2.51342375]
[1646442619609,0.3832,2611.1,2610.2,1.23380068]
[1646442619807,0.3832,2611.1,2610.3,0.82383675]
[1646442619808,1.12298316,2611.0,2610.3,0.82383675]
[1646442620009,0.574,2611.4,2610.4,0.95816]
[1646442620209,2.0,2611.7,2610.5,0.82383675]
[1646442620409,2.8214,2612.1,2610.8,0.9579]
[1646442620609,1.284599,2612.2,2610.9,0.82383675]
[1646442620610,0.72593472,2612.0,2610.9,0.82383675]
[1646442620807,0.72593472,2611.9,2611.0,0.82383675]
[1646442621007,1.14863422,2611.9,2611.3,0.98615071]
[1646442621511,0.00849079,2612.0,2611.3,0.98615071]
[1646442622309,0.00849079,2612.0,2611.4,0.82402872]
[1646442622570,0.00096,2612.3,2611.4,0.82402872]